bitfinex-derivatives/quotes_BTCF0:USTF0_20260106
["timestamp","ask_amount","ask_price","bid_price","bid_amount"]
[1767727523697,0.01084,92290.0,92279.0,0.00216735]
[1767727524089,0.11196539,92281.0,92279.0,3.5e-07]
[1767727524387,0.09300763,92279.0,92271.0,0.0922]
[1767727524587,0.09300763,92284.0,92270.0,0.19479464]
[1767727525099,0.010841,92283.0,92270.0,0.19479464]
[1767727525294,0.010838,92303.0,92270.0,0.21182406]
[1767727525591,0.01084,92291.0,92280.0,0.10259464]
[1767727525999,0.01084,92291.0,92277.0,0.01702942]
[1767727526394,0.01084,92289.0,92277.0,0.01702942]
[1767727527201,0.09300763,92296.0,92277.0,0.01702942]
[1767727527401,0.09300763,92296.0,92270.0,0.28494238]
[1767727527402,0.09300763,92295.0,92273.0,0.02800052]
[1767727527603,0.01084,92290.0,92273.0,0.02800052]
[1767727527804,0.01084,92288.0,92273.0,0.02800052]
[1767727528795,0.01084,92288.0,92275.0,0.010841]
[1767727529196,0.01084,92291.0,92275.0,0.010841]
[1767727529497,0.01084,92290.0,92273.0,0.01715852]
[1767727529891,0.01084,92290.0,92274.0,0.010842]
[1767727530898,0.01084,92290.0,92274.0,0.02713532]
[1767727532003,0.01084,92290.0,92276.0,0.010841]
[1767727533105,0.01084,92289.0,92274.0,0.01629332]
[1767727533307,0.01084,92288.0,92272.0,0.010842]
[1767727534003,0.01084,92286.0,92272.0,0.010842]
[1767727534801,0.01084,92286.0,92271.0,0.01568037]
[1767727534802,0.01084,92286.0,92273.0,0.010842]
[1767727535108,0.01084,92286.0,92274.0,0.01548236]
[1767727535303,0.01084,92289.0,92275.0,0.010842]
[1767727536511,0.01084,92285.0,92272.0,0.010842]
[1767727536810,0.01084,92288.0,92272.0,0.010842]
[1767727537009,0.01084,92288.0,92274.0,0.010842]
[1767727538002,0.11383557,92291.0,92274.0,0.010842]
[1767727539202,0.01084,92288.0,92274.0,0.010842]
[1767727539522,0.01084,92288.0,92272.0,0.02544557]
[1767727540607,0.09580687,92289.0,92272.0,0.01460357]
[1767727540811,0.09580687,92288.0,92270.0,0.19479464]
[1767727541314,0.010841,92283.0,92270.0,0.19479464]
[1767727542014,0.11383557,92284.0,92270.0,0.0922]
[1767727542413,0.010841,92282.0,92270.0,0.103042]
[1767727542803,0.010841,92282.0,92270.0,0.20563664]
[1767727543316,0.010841,92282.0,92270.0,0.19479464]
[1767727544609,0.09580687,92284.0,92270.0,0.10259464]
[1767727544804,0.09580687,92284.0,92268.0,0.0922]
[1767727545004,0.010841,92283.0,92268.0,0.103042]
[1767727545405,0.010841,92283.0,92268.0,0.11645733]
[1767727545807,0.010841,92282.0,92268.0,0.11645733]
[1767727546206,0.010841,92282.0,92270.0,0.10259464]
[1767727546816,0.01839651,92282.0,92270.0,0.1158195]
[1767727547024,0.010841,92284.0,92271.0,0.01322486]
[1767727547924,0.01084,92286.0,92271.0,0.02406686]
[1767727549311,0.01084,92285.0,92271.0,0.01322486]
[1767727549711,0.010841,92283.0,92271.0,0.01322486]
[1767727550318,0.01084,92286.0,92272.0,0.010842]
[1767727551313,0.01084,92286.0,92273.0,0.010842]
[1767727551621,0.01084,92288.0,92273.0,0.010842]
[1767727552620,0.01084,92286.0,92273.0,0.010842]
[1767727552821,0.01084,92285.0,92272.0,0.010842]
[1767727553413,0.01084,92288.0,92274.0,0.010842]
[1767727554614,0.01084,92286.0,92271.0,0.02406686]
[1767727554818,0.01084,92286.0,92271.0,0.010842]
[1767727555016,0.01084,92286.0,92272.0,0.010842]
[1767727556324,0.01084,92286.0,92273.0,0.010842]
[1767727558026,0.01084,92286.0,92273.0,0.103042]
[1767727559828,0.10836757,92288.0,92275.0,0.010841]
[1767727560027,0.10836757,92288.0,92273.0,0.0922]
[1767727560825,0.10836757,92288.0,92273.0,0.06750855]
[1767727561228,0.10836757,92288.0,92276.0,0.010841]
[1767727561826,0.09752757,92288.0,92273.0,0.06750855]
[1767727562038,0.09752757,92288.0,92274.0,0.010842]
[1767727562629,0.01084,92287.0,92274.0,0.010842]
[1767727563215,0.01084,92286.0,92273.0,0.06750855]
[1767727563419,0.01084,92286.0,92273.0,0.07835055]
[1767727564028,0.01084,92286.0,92274.0,0.010842]
[1767727566330,0.10836757,92288.0,92275.0,0.010841]
[1767727566533,0.09752757,92288.0,92273.0,0.06750855]
[1767727567032,0.09752757,92288.0,92279.0,0.010841]
[1767727567328,0.09752757,92288.0,92280.0,0.010841]
[1767727567531,0.09752757,92288.0,92281.0,0.010841]
[1767727567731,0.09752757,92288.0,92284.0,0.01084]
[1767727567921,0.09752757,92288.0,92282.0,0.010841]
[1767727568330,0.09752757,92288.0,92279.0,0.010841]
[1767727568826,0.09752757,92288.0,92273.0,0.06750855]
[1767727569030,0.09752757,92288.0,92277.0,0.010841]
[1767727569233,0.11431958,92288.0,92277.0,0.010841]
[1767727570128,0.11431958,92288.0,92279.0,0.010841]
[1767727570431,0.11431958,92288.0,92273.0,0.06750855]
[1767727571033,0.11431958,92288.0,92276.0,0.010841]
[1767727571331,0.11431958,92288.0,92277.0,0.010841]
[1767727572026,0.09752757,92288.0,92279.0,0.010841]
[1767727572231,0.09752757,92288.0,92273.0,0.06750855]
[1767727572526,0.01859655,92289.0,92273.0,0.07745141]
[1767727572733,0.09560283,92289.0,92284.0,0.01084]
[1767727573227,0.11347022,92289.0,92284.0,0.01084]
[1767727573818,0.11347022,92289.0,92273.0,0.06750855]
[1767727574433,0.11347022,92289.0,92279.0,0.010841]
[1767727575237,0.11347022,92289.0,92280.0,0.010841]
[1767727575934,0.01786739,92289.0,92275.0,0.00935429]
[1767727576134,0.0922,92297.0,92275.0,0.00935429]
[1767727576433,0.18780283,92297.0,92285.0,0.01084]
[1767727576834,0.09560283,92296.0,92285.0,0.01084]
[1767727577630,0.09560283,92296.0,92286.0,0.01084]
[1767727577838,0.09560283,92296.0,92287.0,0.01084]
[1767727578332,0.11239484,92296.0,92287.0,0.01084]
[1767727578532,0.09560283,92294.0,92287.0,0.01084]
[1767727579830,0.09560283,92294.0,92277.0,0.10137733]
[1767727580032,0.11239484,92294.0,92285.0,0.01084]
[1767727581437,4e-08,92297.0,92295.0,0.010839]
[1767727581637,0.09560283,92307.0,92292.0,0.00816033]
[1767727581829,0.09560283,92314.0,92296.0,0.00816033]
[1767727582029,0.09560283,92314.0,92307.0,0.010838]
[1767727582835,0.11364614,92314.0,92304.0,0.010838]
[1767727583035,0.11364614,92314.0,92296.0,0.00816033]
[1767727583238,0.09560283,92312.0,92300.0,0.010839]
[1767727583641,0.09560283,92312.0,92302.0,0.010838]
[1767727583840,0.09560283,92310.0,92299.0,0.010839]
[1767727584139,0.09560283,92310.0,92301.0,0.010838]
[1767727585341,0.09560283,92310.0,92303.0,0.010838]
[1767727586032,0.01804331,92314.0,92307.0,0.010838]
[1767727586237,0.01844691,92318.0,92305.0,0.00887695]
[1767727586437,0.09560283,92323.0,92311.0,0.010837]
[1767727586637,0.11239484,92323.0,92313.0,0.010837]
[1767727586837,0.09560283,92321.0,92313.0,0.010837]
[1767727587037,0.11239484,92321.0,92302.0,0.00887695]
[1767727587238,0.11239484,92320.0,92310.0,0.010837]
[1767727588938,0.11239484,92320.0,92312.0,0.010837]
[1767727589140,0.09560283,92318.0,92311.0,0.010837]
[1767727590247,0.09560283,92318.0,92313.0,0.010837]
[1767727590745,0.09560283,92318.0,92309.0,0.0922]
[1767727592246,0.09560283,92318.0,92312.0,0.010837]
[1767727592439,0.09560283,92318.0,92312.0,0.00724652]
[1767727595040,0.11258358,92318.0,92309.0,0.103037]
[1767727595643,0.09560283,92318.0,92309.0,0.0922]
[1767727596048,0.09560283,92318.0,92314.0,0.010837]
[1767727596243,0.103035,92332.0,92309.0,0.0922]
[1767727596447,0.103035,92332.0,92316.0,0.010837]
[1767727596648,0.1199972,92332.0,92316.0,0.010837]
[1767727597154,0.1199972,92332.0,92318.0,0.010836]
[1767727597748,0.1199972,92332.0,92309.0,0.0922]
[1767727597749,0.010835,92330.0,92309.0,0.0922]
[1767727597949,0.010835,92328.0,92313.0,0.010837]
[1767727598155,0.09291275,92327.0,92313.0,0.010837]
[1767727599062,0.010836,92324.0,92309.0,0.103037]
[1767727599248,0.09291275,92323.0,92311.0,0.010837]
[1767727599577,0.09291275,92318.0,92309.0,0.0922]
[1767727604256,0.1098935,92322.0,92309.0,0.0922]
[1767727604460,0.01698075,92321.0,92309.0,0.0922]
[1767727604762,0.1098935,92321.0,92309.0,0.0922]
[1767727605355,0.01698075,92324.0,92309.0,0.0922]
[1767727605560,0.01698075,92322.0,92309.0,0.0922]
[1767727605946,0.09291275,92323.0,92314.0,0.010837]
[1767727606150,0.1098935,92323.0,92314.0,0.010837]
[1767727606355,0.1098935,92323.0,92309.0,0.0922]
[1767727606558,0.1098935,92323.0,92313.0,0.010837]
[1767727607859,0.09291275,92323.0,92313.0,0.010837]
[1767727608160,0.1098935,92326.0,92313.0,0.010837]
[1767727608349,0.01698075,92325.0,92313.0,0.010837]
[1767727608552,0.01698075,92324.0,92313.0,0.010837]
[1767727610363,0.01698075,92324.0,92304.0,0.11440782]
[1767727610752,0.02774137,92332.0,92326.0,0.010836]
[1767727610753,0.01690637,92332.0,92326.0,0.010836]
[1767727610960,0.09507869,92339.0,92326.0,0.010836]
[1767727611152,0.09507869,92339.0,92329.0,0.010835]
[1767727611562,0.09507869,92339.0,92326.0,0.010835]
[1767727611762,0.11202348,92339.0,92326.0,0.010835]
[1767727612859,0.12900423,92339.0,92326.0,0.010835]
[1767727613651,0.01698075,92343.0,92330.0,0.010835]
[1767727614056,0.01698075,92343.0,92332.0,0.010835]
[1767727614359,7.4e-07,92343.0,92332.0,0.09216]
[1767727614556,0.01698075,92362.0,92333.0,0.4]
[1767727614755,0.01666737,92351.0,92341.0,0.010834]
[1767727614954,0.01698075,92355.0,92342.0,0.09216]
[1767727615457,0.01698075,92353.0,92337.0,0.010834]
[1767727615760,0.01698075,92353.0,92334.0,0.01633773]
[1767727615761,0.09291275,92348.0,92334.0,0.010835]
[1767727616062,0.01657548,92353.0,92335.0,0.09216]
[1767727616063,0.01698075,92343.0,92335.0,0.09216]
[1767727616363,0.01698075,92343.0,92336.0,0.09216]
[1767727620459,0.09291275,92344.0,92336.0,0.09216]
[1767727620966,0.09291275,92344.0,92331.0,0.010835]
[1767727620967,0.01698075,92342.0,92330.0,0.10251034]
[1767727621164,0.10251034,92350.0,92330.0,0.09216]
[1767727621165,0.01698075,92339.0,92330.0,0.09216]
[1767727621359,0.01698075,92339.0,92330.0,0.19467034]
[1767727622458,0.09291275,92340.0,92330.0,0.19467034]
[1767727622966,0.11205274,92353.0,92334.0,0.01894723]
[1767727623166,0.01083,92373.0,92346.0,0.11993436]
[1767727623463,0.09216,92378.0,92359.0,0.10251034]
[1767727623655,0.010829,92380.0,92368.0,0.10251034]
[1767727624061,0.01083,92376.0,92361.0,0.09015413]
[1767727624261,0.01083,92376.0,92360.0,0.10251034]
[1767727624459,0.01083,92374.0,92360.0,0.10251034]
[1767727624665,0.01083,92372.0,92359.0,0.09216]
[1767727625566,0.01083,92372.0,92360.0,0.10251034]
[1767727626068,0.01083,92373.0,92360.0,0.10251034]
[1767727626276,0.01841531,92374.0,92361.0,0.010831]
[1767727626569,0.01841531,92374.0,92363.0,0.010831]
[1767727627357,0.1140112,92377.0,92363.0,0.010831]
[1767727628566,0.1140112,92377.0,92361.0,0.010831]
[1767727629169,0.01841531,92376.0,92363.0,0.010831]
[1767727629585,0.01841531,92376.0,92360.0,0.11334134]
[1767727629774,0.01841531,92376.0,92362.0,0.010831]
[1767727630178,0.01841531,92376.0,92364.0,0.010831]
[1767727630871,0.01841531,92376.0,92361.0,0.010831]
[1767727631268,0.01841531,92376.0,92363.0,0.010831]
[1767727631581,0.01841531,92376.0,92360.0,0.11334234]
[1767727631785,0.01841531,92376.0,92362.0,0.010831]
[1767727632169,0.01841531,92376.0,92364.0,0.010831]
[1767727632569,0.01841531,92375.0,92360.0,0.010832]
[1767727632868,0.01652753,92390.0,92370.0,0.01894723]
[1767727633068,0.01841531,92391.0,92380.0,0.10251034]
[1767727633277,0.03501159,92391.0,92380.0,0.10251034]
[1767727633669,0.01841531,92390.0,92380.0,0.10251034]
[1767727634169,0.1140112,92384.0,92358.0,0.10910136]
[1767727634366,0.1140112,92384.0,92351.0,0.010833]
[1767727634367,0.01841531,92374.0,92359.0,0.09212]
[1767727634573,0.01841531,92374.0,92360.0,0.19463034]
[1767727634769,0.02924531,92373.0,92360.0,0.19463034]
[1767727634972,0.01083,92371.0,92355.0,0.010832]
[1767727635172,0.01841531,92372.0,92356.0,0.09212]
[1767727635375,0.01841531,92372.0,92357.0,0.010832]
[1767727635771,0.01841531,92372.0,92360.0,0.10251034]
[1767727635977,0.02924531,92372.0,92356.0,0.09212]
[1767727636172,0.02924531,92372.0,92360.0,0.10251034]
[1767727636378,0.01083,92370.0,92360.0,0.10251034]
[1767727636778,0.01841531,92372.0,92360.0,0.10251034]
[1767727637179,0.01083,92373.0,92360.0,0.10251034]
[1767727639071,0.010831,92369.0,92360.0,0.10251034]
[1767727639279,0.01841531,92379.0,92360.0,0.09015413]
[1767727639585,0.01083,92375.0,92360.0,0.10098513]
[1767727640483,0.01083,92373.0,92360.0,0.09015413]
[1767727641386,0.01083,92373.0,92360.0,0.19266447]
[1767727642074,0.01841531,92379.0,92360.0,0.19266447]
[1767727642489,0.010831,92369.0,92360.0,0.10251034]
[1767727642691,0.010831,92369.0,92359.0,0.09212]
[1767727642885,0.010831,92369.0,92360.0,0.09015413]
[1767727645180,0.01841531,92377.0,92360.0,0.09015413]
[1767727645181,0.01083,92376.0,92360.0,0.09015413]
[1767727645386,0.01841531,92364.0,92349.0,0.09212]
[1767727645781,0.010832,92359.0,92349.0,0.09212]
[1767727646684,0.1140112,92368.0,92349.0,0.19463034]
[1767727646685,0.010831,92362.0,92349.0,0.19463034]
[1767727647090,0.010831,92362.0,92349.0,0.09212]
[1767727647785,0.010832,92360.0,92349.0,0.09212]
[1767727647982,0.010833,92352.0,92343.0,0.09212]
[1767727648490,0.01841531,92359.0,92343.0,0.09212]
[1767727648989,0.010831,92362.0,92346.0,0.09015413]
[1767727649197,0.010832,92361.0,92346.0,0.10910136]
[1767727649495,0.010832,92361.0,92347.0,0.010833]
[1767727650181,0.01841531,92365.0,92346.0,0.09015413]
[1767727650388,0.01841531,92365.0,92340.0,0.10251034]
[1767727650389,0.00995397,92419.0,92349.0,0.01894723]
[1767727650686,0.010824,92424.0,92410.0,0.01894723]
[1767727650891,0.005824,92426.0,92416.0,0.1801]
[1767727651084,0.09559589,92429.0,92407.0,0.01894723]
[1767727651280,0.09559589,92429.0,92400.0,0.12145757]
[1767727651493,0.09559589,92429.0,92413.0,0.010825]
[1767727651699,0.09559589,92429.0,92410.0,0.10251034]
[1767727651996,0.09559589,92429.0,92411.0,0.1801]
[1767727652194,0.09559589,92429.0,92408.0,0.010826]
[1767727652393,0.09559589,92429.0,92411.0,0.190926]
[1767727652896,0.09559589,92429.0,92411.0,0.1801]
[1767727653298,0.09559589,92429.0,92410.0,0.11333634]
[1767727653594,0.09559589,92429.0,92411.0,0.010826]
[1767727653791,0.09559589,92429.0,92414.0,0.010825]
[1767727653997,0.09559589,92429.0,92419.0,0.10251034]
[1767727654397,0.09559589,92429.0,92409.0,0.010826]
[1767727654602,0.09559589,92429.0,92419.0,0.10251034]
[1767727655395,0.09212,92437.0,92408.0,0.010826]
[1767727655396,0.09653007,92422.0,92408.0,0.010826]
[1767727655598,0.09653007,92422.0,92410.0,0.10251034]
[1767727657805,0.09653007,92422.0,92408.0,0.010826]
[1767727657997,0.09653007,92422.0,92410.0,0.10251034]
[1767727658797,0.09653007,92422.0,92411.0,0.010826]
[1767727660704,0.09653007,92422.0,92400.0,0.16168115]
[1767727661005,0.09653007,92422.0,92410.0,0.11333634]
[1767727661204,0.09653007,92414.0,92400.0,0.10251034]
[1767727661510,0.09653007,92412.0,92393.0,0.09208]
[1767727661695,0.09653007,92412.0,92404.0,0.10251034]
[1767727662595,7e-08,92412.0,92405.0,0.010826]
[1767727662798,7e-08,92412.0,92404.0,0.10251034]
[1767727663007,0.02743199,92412.0,92400.0,0.10251034]
[1767727663202,0.09208,92418.0,92400.0,0.10251034]
[1767727663396,0.010825,92414.0,92400.0,0.10251034]
[1767727663601,0.010825,92417.0,92400.0,0.10251034]
[1767727663803,0.010825,92414.0,92400.0,0.10251034]
[1767727664407,0.09653007,92413.0,92393.0,0.010828]
[1767727664611,0.09653007,92413.0,92400.0,0.10251034]
[1767727665105,0.00995397,92404.0,92400.0,0.10251034]
[1767727665409,0.00995397,92404.0,92394.0,0.10251034]
[1767727665605,0.10735607,92410.0,92394.0,0.10251034]
[1767727665906,0.10735607,92410.0,92390.0,0.11333834]
[1767727665907,0.09653007,92407.0,92390.0,0.11333834]
[1767727666300,0.10735607,92406.0,92390.0,0.010828]
[1767727666507,0.010827,92401.0,92384.0,0.010829]
[1767727666806,0.09653007,92404.0,92390.0,0.10251034]
[1767727667207,0.09653007,92404.0,92392.0,0.010828]
[1767727669416,0.09653007,92404.0,92390.0,0.10251034]
[1767727670620,0.09653007,92404.0,92391.0,0.010828]
[1767727671314,0.09653007,92402.0,92385.0,0.010829]
[1767727671519,0.010827,92398.0,92381.0,0.010829]
[1767727671818,0.010827,92396.0,92388.0,0.10251034]
[1767727672819,0.010827,92395.0,92382.0,0.010829]
[1767727673013,0.010827,92398.0,92382.0,0.010829]
[1767727673819,0.010827,92396.0,92381.0,0.010829]
[1767727674010,0.010827,92396.0,92388.0,0.10251034]
[1767727674627,0.09653007,92398.0,92386.0,0.10251034]
[1767727675009,0.09653007,92398.0,92383.0,0.010829]
[1767727675410,0.010827,92397.0,92383.0,0.010829]
[1767727675817,0.010828,92395.0,92380.0,0.10251034]
[1767727676022,0.10735707,92398.0,92382.0,0.010829]
[1767727676710,0.010827,92396.0,92382.0,0.010829]
[1767727677820,0.09653007,92398.0,92384.0,0.010829]
[1767727679112,0.010827,92397.0,92384.0,0.010829]
[1767727680422,0.00995397,92390.0,92364.0,0.02891478]
[1767727680621,0.010828,92389.0,92374.0,0.01083]
[1767727680820,0.010829,92383.0,92370.0,0.01083]
[1767727681017,0.010829,92383.0,92369.0,0.00216524]
[1767727681018,0.010829,92380.0,92369.0,0.00216524]
[1767727681217,0.09219976,92382.0,92369.0,0.00216524]
[1767727681725,0.10302876,92382.0,92369.0,0.00216524]
[1767727681925,0.12777967,92382.0,92369.0,0.00216524]
[1767727682127,0.10302876,92382.0,92369.0,0.00216524]
[1767727683915,0.010829,92379.0,92369.0,0.00216524]
[1767727684518,0.12391216,92380.0,92369.0,0.00216524]
[1767727684827,0.0986185,92377.0,92369.0,0.00216524]
[1767727685017,0.0986185,92377.0,92362.0,0.010831]
[1767727685218,0.0986185,92377.0,92364.0,0.010831]
[1767727685418,0.12363432,92376.0,92361.0,0.010831]
[1767727685625,0.0986185,92375.0,92361.0,0.010831]
[1767727685819,0.0986185,92372.0,92361.0,0.010831]
[1767727687029,0.11619877,92372.0,92361.0,0.010831]
[1767727688428,0.12285579,92371.0,92357.0,8.383e-05]
[1767727688633,0.0986185,92366.0,92349.0,0.03009677]
[1767727688932,0.0986185,92366.0,92350.0,0.03009677]
[1767727689518,0.0986185,92366.0,92351.0,0.010833]
[1767727689519,9.855e-05,92365.0,92351.0,0.010833]
[1767727689728,0.0986185,92361.0,92345.0,0.09212]
[1767727689932,0.0986185,92361.0,92348.0,0.010833]
[1767727690731,0.0986185,92361.0,92351.0,0.010833]
[1767727691835,0.0986185,92361.0,92348.0,0.010833]
[1767727692731,0.0986185,92361.0,92350.0,0.010833]
[1767727696336,9.855e-05,92360.0,92350.0,0.010833]
[1767727696536,9.237e-05,92359.0,92350.0,0.010833]
[1767727696734,9.855e-05,92358.0,92350.0,0.010833]
[1767727696930,0.0986185,92361.0,92350.0,0.010833]
[1767727697139,8.549e-05,92357.0,92350.0,0.010833]
[1767727697346,9.855e-05,92356.0,92350.0,0.010833]
[1767727698041,0.00995397,92355.0,92350.0,0.010833]
[1767727698235,9.855e-05,92354.0,92350.0,0.010833]
[1767727700341,9.855e-05,92354.0,92347.0,0.010833]
[1767727700543,9.855e-05,92354.0,92348.0,0.010833]
[1767727700940,9.855e-05,92353.0,92343.0,0.010834]
[1767727701139,9.855e-05,92352.0,92343.0,0.010834]
[1767727701336,9.855e-05,92351.0,92343.0,0.010833]
[1767727704244,9.855e-05,92351.0,92339.0,0.03226271]
[1767727706447,9.855e-05,92351.0,92346.0,0.010833]
[1767727708148,9.855e-05,92351.0,92344.0,0.010833]
[1767727710661,0.0986185,92357.0,92341.0,0.03009677]
[1767727710662,9.855e-05,92350.0,92341.0,0.03009677]
[1767727711156,9.855e-05,92350.0,92345.0,0.010833]
[1767727711358,0.0986185,92357.0,92345.0,0.010833]
[1767727712352,0.09212,92361.0,92348.0,0.010833]
[1767727712558,0.09212,92361.0,92344.0,0.02506272]
[1767727712753,0.102951,92361.0,92348.0,0.010833]
[1767727713361,0.09212,92361.0,92349.0,0.010833]
[1767727713562,0.00995397,92360.0,92349.0,0.010833]
[1767727713962,0.09212,92361.0,92349.0,0.010833]
[1767727715265,0.09212,92361.0,92350.0,0.010833]
[1767727715655,0.09212,92361.0,92345.0,0.02506272]
[1767727715855,0.09212,92361.0,92348.0,0.010833]
[1767727716052,0.09212,92361.0,92340.0,0.09242189]
[1767727716053,0.09212,92361.0,92342.0,0.010834]
[1767727716255,0.010832,92355.0,92341.0,0.010834]
[1767727716455,0.010832,92355.0,92341.0,0.03589672]
[1767727716764,0.09699823,92359.0,92341.0,0.02506272]
[1767727716765,0.010833,92352.0,92341.0,0.02506272]
[1767727718969,0.010833,92352.0,92341.0,0.03589672]
[1767727719158,0.010833,92351.0,92339.0,0.01299994]
[1767727720164,0.10783023,92353.0,92339.0,0.00216594]
[1767727720368,0.09699823,92353.0,92342.0,0.010834]
[1767727720965,0.09699823,92353.0,92340.0,0.010834]
[1767727722066,0.09699823,92353.0,92339.0,0.00216594]
[1767727723266,0.09699823,92353.0,92341.0,0.010834]
[1767727723454,0.09699823,92353.0,92342.0,0.010834]
[1767727724364,0.09699823,92353.0,92344.0,0.010833]
[1767727724560,0.09699823,92357.0,92339.0,0.02722866]
[1767727724972,0.10783023,92357.0,92339.0,0.02722866]
[1767727725268,0.010832,92355.0,92339.0,0.02722866]
[1767727726272,0.010832,92355.0,92341.0,0.010834]
[1767727726771,0.10783023,92357.0,92342.0,0.010834]
[1767727727870,0.10783023,92356.0,92342.0,0.010834]
[1767727728463,0.10783023,92356.0,92344.0,0.010833]
[1767727728664,0.00995397,92355.0,92344.0,0.010833]
[1767727728966,0.00995397,92355.0,92342.0,0.010834]
[1767727729265,0.10783023,92356.0,92342.0,0.010834]
[1767727729665,0.010832,92355.0,92342.0,0.010834]
[1767727730167,0.010832,92354.0,92339.0,0.01299994]
[1767727730878,0.010832,92354.0,92340.0,0.010834]
[1767727731068,0.09699823,92356.0,92339.0,0.00216594]
[1767727732275,0.010832,92355.0,92340.0,0.010834]
[1767727732761,0.010833,92353.0,92339.0,0.00216594]
[1767727733271,0.010833,92353.0,92340.0,0.010834]
[1767727734874,0.010832,92355.0,92340.0,0.010834]
[1767727737570,0.010832,92355.0,92342.0,0.010834]
[1767727738587,0.09699823,92356.0,92342.0,0.010834]
[1767727738771,0.09699823,92356.0,92339.0,0.01299994]
[1767727739074,0.010832,92353.0,92340.0,0.010834]
[1767727740585,0.09699823,92356.0,92340.0,0.010834]
[1767727740586,0.10783023,92356.0,92340.0,0.010834]
[1767727740775,0.010832,92355.0,92340.0,0.010834]
[1767727740974,0.010832,92353.0,92340.0,0.010834]
[1767727741175,0.010832,92355.0,92342.0,0.010834]
[1767727741776,0.010832,92353.0,92339.0,0.00216594]
[1767727742582,0.010832,92353.0,92340.0,0.10250285]
[1767727742985,0.00995397,92352.0,92340.0,0.10250285]
[1767727743579,0.010833,92351.0,92340.0,0.10250285]
[1767727744283,0.010833,92350.0,92339.0,0.00216594]
[1767727744878,0.09719121,92351.0,92339.0,0.00216594]
[1767727745078,0.09719121,92351.0,92339.0,0.01299994]
[1767727745283,0.09719121,92351.0,92342.0,0.010834]
[1767727745582,0.09719121,92351.0,92343.0,0.010833]
[1767727745779,0.09719121,92358.0,92341.0,0.02326608]
[1767727746086,0.09212,92361.0,92348.0,0.12576893]
[1767727746476,0.18931121,92361.0,92348.0,0.10250285]
[1767727746678,0.09719121,92360.0,92350.0,0.10250285]
[1767727746873,0.10802321,92360.0,92350.0,0.10250285]
[1767727747487,0.09719121,92360.0,92350.0,0.10250285]
[1767727747783,0.18931121,92360.0,92350.0,0.10250285]
[1767727749788,0.010832,92359.0,92350.0,0.10250285]
[1767727750090,0.010832,92357.0,92341.0,0.03410008]
[1767727750690,0.010832,92357.0,92343.0,0.010834]
[1767727753482,0.010832,92359.0,92340.0,0.12576893]
[1767727753780,0.010832,92357.0,92343.0,0.010833]
[1767727755590,0.18931121,92360.0,92340.0,0.13660293]
[1767727756092,0.09719121,92359.0,92340.0,0.13660293]
[1767727757290,0.010832,92353.0,92340.0,0.13660293]
[1767727763584,0.010832,92353.0,92341.0,0.02326608]
[1767727763988,0.00995397,92352.0,92341.0,0.02326608]
[1767727764186,0.00995397,92352.0,92341.0,0.03410008]
[1767727764394,0.00995397,92352.0,92342.0,0.03410008]
[1767727764583,0.010832,92355.0,92342.0,0.03410008]
[1767727764791,0.010832,92357.0,92343.0,0.03409908]
[1767727764990,0.010831,92367.0,92353.0,0.02326608]
[1767727765192,0.09212,92367.0,92357.0,0.11333485]
[1767727765395,0.09212,92367.0,92357.0,0.10250285]
[1767727767588,0.010831,92366.0,92357.0,0.10250285]
[1767727767793,0.010831,92366.0,92353.0,0.02326608]
[1767727769594,0.09212,92367.0,92356.0,0.10250285]
[1767727774094,0.102951,92367.0,92356.0,0.10250285]
[1767727774295,0.010831,92366.0,92356.0,0.10250285]
[1767727774897,0.09212,92367.0,92356.0,0.10250285]
[1767727775588,0.102951,92367.0,92356.0,0.10250285]
[1767727775791,0.09212,92367.0,92356.0,0.07783277]
[1767727777296,0.010831,92366.0,92356.0,0.07783277]
[1767727778194,0.09704921,92365.0,92356.0,0.07783277]
[1767727778395,0.11605802,92367.0,92337.0,0.09107199]
[1767727778396,0.010833,92352.0,92339.0,0.01299994]
[1767727778596,0.102951,92367.0,92339.0,0.00216594]
[1767727778597,0.09704921,92354.0,92339.0,0.00216594]
[1767727778796,0.02078697,92351.0,92339.0,0.00216594]
[1767727779000,0.010833,92351.0,92340.0,0.10250285]
[1767727779891,0.010832,92355.0,92341.0,0.010834]
[1767727780093,0.02393802,92358.0,92340.0,0.10250285]
[1767727780298,0.12098723,92358.0,92339.0,0.02455429]
[1767727780496,0.12098723,92358.0,92340.0,0.10250285]
[1767727780995,0.010833,92349.0,92340.0,0.10250285]
[1767727782290,0.010833,92347.0,92340.0,0.10250285]
[1767727782497,0.010833,92347.0,92339.0,0.00216594]
[1767727784593,0.010833,92345.0,92339.0,0.00216594]
[1767727785003,0.09704921,92353.0,92339.0,0.00216594]
[1767727786401,0.09212,92357.0,92332.0,0.010835]
[1767727786402,0.010833,92344.0,92332.0,0.010835]
[1767727786602,0.010833,92347.0,92332.0,0.03322335]
[1767727786804,0.010833,92347.0,92333.0,0.02238835]
[1767727787298,0.010833,92347.0,92334.0,0.03322335]
[1767727787501,0.010833,92347.0,92335.0,0.02238835]
[1767727788095,0.010833,92349.0,92337.0,0.010834]
[1767727789004,0.010833,92349.0,92339.0,0.10250285]
[1767727789595,0.09704921,92351.0,92339.0,0.10250285]
[1767727789790,0.010833,92352.0,92339.0,0.10250285]
[1767727790206,0.09704921,92355.0,92339.0,0.10250285]
[1767727791398,0.010833,92351.0,92339.0,0.10250285]
[1767727792101,0.010833,92350.0,92339.0,0.10250285]
[1767727792301,0.010833,92348.0,92339.0,0.10250285]
[1767727792603,0.010833,92348.0,92336.0,0.03322235]
[1767727793311,0.010833,92348.0,92337.0,0.02238835]
[1767727798507,0.010833,92350.0,92337.0,0.02238835]
[1767727799511,0.010833,92349.0,92337.0,0.02238835]
[1767727799713,0.09634706,92352.0,92334.0,0.010835]
[1767727799910,0.09634706,92352.0,92334.0,0.03219636]
[1767727800106,0.09634706,92352.0,92335.0,0.02136136]
[1767727800303,0.010834,92344.0,92335.0,0.02136136]
[1767727800507,0.010833,92350.0,92336.0,0.02136136]
[1767727802707,0.010833,92350.0,92336.0,0.03219536]
[1767727803011,0.010833,92350.0,92336.0,0.010834]
[1767727803218,0.010833,92350.0,92337.0,0.0221509]
[1767727803420,0.09212,92357.0,92346.0,0.010833]
[1767727803610,0.010831,92366.0,92351.0,0.0221509]
[1767727803917,0.09216,92363.0,92351.0,0.0221509]
[1767727804107,0.09216,92363.0,92350.0,0.010833]
[1767727804303,0.4,92363.0,92354.0,0.010832]